{"text_format":"1","workbook":"xlsx","n_sheets":2,"sheets":["Ввод платежных данных","шаблон_квитанций"],"not_rendered":{"charts":0,"images":0,"macros":1,"external_links":0,"defined_names":7,"comments":0,"pivot_tables":0},"unopened":[],"bounds":{"document_bytes":16777216,"sheet_cells":100000,"rows_first":2000,"rows_last":500,"rows_between":2000,"halvings":0,"cell_chars":16384,"cell_head_chars":4096},"cells_cut":0,"cells_raw":0,"read":"whole","date_system":"1900"}

{"sheet":"Ввод платежных данных","index":0,"n_rows":13,"n_cols":24,"rows_kept":13,"cut":false,"hidden":false,"merged":[]}
[null,"КАЛЬКУЛЯТОР ЗАРАБОТНОЙ ПЛАТЫ",null,null,null,null,null,null,null,null,"ОКОНЧАНИЕ ПЕРИОДА:",41372,null,"НАЗВАНИЕ ОРГАНИЗАЦИИ:",null,"Мир приключений"]
[]
[null,"Код","Имя сотрудника","Отработано обычн. часов","Отпуск, ч","Больничный, ч","Сверхурочно, ч","Сверхурочная ставка","Зарплата брутто","Налоги и уд-я","Другие уд-я","Зарплата нетто"," ","Почасовая ставка","Налоговый статус","Федеральный вычет","Налог штата","Федеральный подоходный налог","Социальный налог","Отчисление в ФОМС","Итого налогов удержано","Страховое удержание","Другие рег. удержания","Итого рег. удержаний"]
[null,1001,"Григорий Верный",50,5,1,null,null,{"$f":"SUM(Сотрудники[[#This Row],[Отработано обычн. часов]:[Больничный, ч]])*Сотрудники[[#This Row],[Почасовая ставка]]+Сотрудники[[#This Row],[Сверхурочно, ч]]*Сотрудники[[#This Row],[Сверхурочная ставка]]","v":560},{"$f":"Сотрудники[[#This Row],[Зарплата брутто]]*Сотрудники[[#This Row],[Итого налогов удержано]] + Сотрудники[[#This Row],[Итого рег. удержаний]]","v":273.08000000000004},20,{"$f":"Сотрудники[[#This Row],[Зарплата брутто]]-Сотрудники[[#This Row],[Налоги и уд-я]]-Сотрудники[[#This Row],[Другие уд-я]]","v":266.91999999999996},null,10,1,4,2.3E-2,0.28000000000000003,6.3E-2,1.4500000000000001E-2,{"$f":"SUM(Сотрудники[[#This Row],[Налог штата]:[Отчисление в ФОМС]])","v":0.38050000000000006},20,40,{"$f":"SUM(Сотрудники[[#This Row],[Страховое удержание]:[Другие рег. удержания]])","v":60}]
[null,1002,"Владимир Егоров",40,null,null,null,null,{"$f":"SUM(Сотрудники[[#This Row],[Отработано обычн. часов]:[Больничный, ч]])*Сотрудники[[#This Row],[Почасовая ставка]]+Сотрудники[[#This Row],[Сверхурочно, ч]]*Сотрудники[[#This Row],[Сверхурочная ставка]]","v":320},{"$f":"Сотрудники[[#This Row],[Зарплата брутто]]*Сотрудники[[#This Row],[Итого налогов удержано]] + Сотрудники[[#This Row],[Итого рег. удержаний]]","v":131.76000000000002},null,{"$f":"Сотрудники[[#This Row],[Зарплата брутто]]-Сотрудники[[#This Row],[Налоги и уд-я]]-Сотрудники[[#This Row],[Другие уд-я]]","v":188.23999999999998},null,8,1,1,2.3E-2,0.28000000000000003,6.3E-2,1.4500000000000001E-2,{"$f":"SUM(Сотрудники[[#This Row],[Налог штата]:[Отчисление в ФОМС]])","v":0.38050000000000006},0,10,{"$f":"SUM(Сотрудники[[#This Row],[Страховое удержание]:[Другие рег. удержания]])","v":10}]
[null,1003,"Юлия Ильина",35,3,null,null,null,{"$f":"SUM(Сотрудники[[#This Row],[Отработано обычн. часов]:[Больничный, ч]])*Сотрудники[[#This Row],[Почасовая ставка]]+Сотрудники[[#This Row],[Сверхурочно, ч]]*Сотрудники[[#This Row],[Сверхурочная ставка]]","v":532},{"$f":"Сотрудники[[#This Row],[Зарплата брутто]]*Сотрудники[[#This Row],[Итого налогов удержано]] + Сотрудники[[#This Row],[Итого рег. удержаний]]","v":240.42600000000004},null,{"$f":"Сотрудники[[#This Row],[Зарплата брутто]]-Сотрудники[[#This Row],[Налоги и уд-я]]-Сотрудники[[#This Row],[Другие уд-я]]","v":291.57399999999996},null,14,1,3,2.3E-2,0.28000000000000003,6.3E-2,1.4500000000000001E-2,{"$f":"SUM(Сотрудники[[#This Row],[Налог штата]:[Отчисление в ФОМС]])","v":0.38050000000000006},18,20,{"$f":"SUM(Сотрудники[[#This Row],[Страховое удержание]:[Другие рег. удержания]])","v":38}]
[null,1008,"Николай Грачев",50,5,1,null,null,{"$f":"SUM(Сотрудники[[#This Row],[Отработано обычн. часов]:[Больничный, ч]])*Сотрудники[[#This Row],[Почасовая ставка]]+Сотрудники[[#This Row],[Сверхурочно, ч]]*Сотрудники[[#This Row],[Сверхурочная ставка]]","v":1120},{"$f":"Сотрудники[[#This Row],[Зарплата брутто]]*Сотрудники[[#This Row],[Итого налогов удержано]] + Сотрудники[[#This Row],[Итого рег. удержаний]]","v":441.16000000000008},null,{"$f":"Сотрудники[[#This Row],[Зарплата брутто]]-Сотрудники[[#This Row],[Налоги и уд-я]]-Сотрудники[[#This Row],[Другие уд-я]]","v":678.83999999999992},null,20,1,0,2.3E-2,0.28000000000000003,6.3E-2,1.4500000000000001E-2,{"$f":"SUM(Сотрудники[[#This Row],[Налог штата]:[Отчисление в ФОМС]])","v":0.38050000000000006},15,null,{"$f":"SUM(Сотрудники[[#This Row],[Страховое удержание]:[Другие рег. удержания]])","v":15}]
[null,1011,"Инна Ожогина",40,null,null,2,15,{"$f":"SUM(Сотрудники[[#This Row],[Отработано обычн. часов]:[Больничный, ч]])*Сотрудники[[#This Row],[Почасовая ставка]]+Сотрудники[[#This Row],[Сверхурочно, ч]]*Сотрудники[[#This Row],[Сверхурочная ставка]]","v":430},{"$f":"Сотрудники[[#This Row],[Зарплата брутто]]*Сотрудники[[#This Row],[Итого налогов удержано]] + Сотрудники[[#This Row],[Итого рег. удержаний]]","v":223.61500000000004},null,{"$f":"Сотрудники[[#This Row],[Зарплата брутто]]-Сотрудники[[#This Row],[Налоги и уд-я]]-Сотрудники[[#This Row],[Другие уд-я]]","v":206.38499999999996},null,10,1,0,2.3E-2,0.28000000000000003,6.3E-2,1.4500000000000001E-2,{"$f":"SUM(Сотрудники[[#This Row],[Налог штата]:[Отчисление в ФОМС]])","v":0.38050000000000006},20,40,{"$f":"SUM(Сотрудники[[#This Row],[Страховое удержание]:[Другие рег. удержания]])","v":60}]
[null,1012,"Сергей Климов",40,5,1,null,null,{"$f":"SUM(Сотрудники[[#This Row],[Отработано обычн. часов]:[Больничный, ч]])*Сотрудники[[#This Row],[Почасовая ставка]]+Сотрудники[[#This Row],[Сверхурочно, ч]]*Сотрудники[[#This Row],[Сверхурочная ставка]]","v":552},{"$f":"Сотрудники[[#This Row],[Зарплата брутто]]*Сотрудники[[#This Row],[Итого налогов удержано]] + Сотрудники[[#This Row],[Итого рег. удержаний]]","v":270.03600000000006},null,{"$f":"Сотрудники[[#This Row],[Зарплата брутто]]-Сотрудники[[#This Row],[Налоги и уд-я]]-Сотрудники[[#This Row],[Другие уд-я]]","v":281.96399999999994},null,12,1,4,2.3E-2,0.28000000000000003,6.3E-2,1.4500000000000001E-2,{"$f":"SUM(Сотрудники[[#This Row],[Налог штата]:[Отчисление в ФОМС]])","v":0.38050000000000006},20,40,{"$f":"SUM(Сотрудники[[#This Row],[Страховое удержание]:[Другие рег. удержания]])","v":60}]
[null,1025,"Екатерина Подколзина",36,null,2,1,18,{"$f":"SUM(Сотрудники[[#This Row],[Отработано обычн. часов]:[Больничный, ч]])*Сотрудники[[#This Row],[Почасовая ставка]]+Сотрудники[[#This Row],[Сверхурочно, ч]]*Сотрудники[[#This Row],[Сверхурочная ставка]]","v":474},{"$f":"Сотрудники[[#This Row],[Зарплата брутто]]*Сотрудники[[#This Row],[Итого налогов удержано]] + Сотрудники[[#This Row],[Итого рег. удержаний]]","v":225.35700000000003},25,{"$f":"Сотрудники[[#This Row],[Зарплата брутто]]-Сотрудники[[#This Row],[Налоги и уд-я]]-Сотрудники[[#This Row],[Другие уд-я]]","v":223.64299999999997},null,12,1,2,2.3E-2,0.28000000000000003,6.3E-2,1.4500000000000001E-2,{"$f":"SUM(Сотрудники[[#This Row],[Налог штата]:[Отчисление в ФОМС]])","v":0.38050000000000006},25,20,{"$f":"SUM(Сотрудники[[#This Row],[Страховое удержание]:[Другие рег. удержания]])","v":45}]
[null,1032,"Олег Анашкин",40,5,1,null,null,{"$f":"SUM(Сотрудники[[#This Row],[Отработано обычн. часов]:[Больничный, ч]])*Сотрудники[[#This Row],[Почасовая ставка]]+Сотрудники[[#This Row],[Сверхурочно, ч]]*Сотрудники[[#This Row],[Сверхурочная ставка]]","v":460},{"$f":"Сотрудники[[#This Row],[Зарплата брутто]]*Сотрудники[[#This Row],[Итого налогов удержано]] + Сотрудники[[#This Row],[Итого рег. удержаний]]","v":175.03000000000003},50,{"$f":"Сотрудники[[#This Row],[Зарплата брутто]]-Сотрудники[[#This Row],[Налоги и уд-я]]-Сотрудники[[#This Row],[Другие уд-я]]","v":234.96999999999997},null,10,1,3,2.3E-2,0.28000000000000003,6.3E-2,1.4500000000000001E-2,{"$f":"SUM(Сотрудники[[#This Row],[Налог штата]:[Отчисление в ФОМС]])","v":0.38050000000000006},null,null,{"$f":"SUM(Сотрудники[[#This Row],[Страховое удержание]:[Другие рег. удержания]])","v":0}]
[null,1049,"Руслан Шашков",40,1,null,null,null,{"$f":"SUM(Сотрудники[[#This Row],[Отработано обычн. часов]:[Больничный, ч]])*Сотрудники[[#This Row],[Почасовая ставка]]+Сотрудники[[#This Row],[Сверхурочно, ч]]*Сотрудники[[#This Row],[Сверхурочная ставка]]","v":615},{"$f":"Сотрудники[[#This Row],[Зарплата брутто]]*Сотрудники[[#This Row],[Итого налогов удержано]] + Сотрудники[[#This Row],[Итого рег. удержаний]]","v":259.00750000000005},23,{"$f":"Сотрудники[[#This Row],[Зарплата брутто]]-Сотрудники[[#This Row],[Налоги и уд-я]]-Сотрудники[[#This Row],[Другие уд-я]]","v":332.99249999999995},null,15,1,2,2.3E-2,0.28000000000000003,6.3E-2,1.4500000000000001E-2,{"$f":"SUM(Сотрудники[[#This Row],[Налог штата]:[Отчисление в ФОМС]])","v":0.38050000000000006},25,null,{"$f":"SUM(Сотрудники[[#This Row],[Страховое удержание]:[Другие рег. удержания]])","v":25}]
[null,"Итоги",{"$f":"SUBTOTAL(103,Сотрудники[Имя сотрудника])","v":9},{"$f":"SUBTOTAL(109,Сотрудники[Отработано обычн. часов])","v":371},{"$f":"SUBTOTAL(109,Сотрудники[Отпуск, ч])","v":24},{"$f":"SUBTOTAL(109,Сотрудники[Больничный, ч])","v":6},{"$f":"SUBTOTAL(109,Сотрудники[Сверхурочно, ч])","v":3},null,{"$f":"SUBTOTAL(109,Сотрудники[Зарплата брутто])","v":5063},{"$f":"SUBTOTAL(109,Сотрудники[Налоги и уд-я])","v":2239.4715000000001},{"$f":"SUBTOTAL(109,Сотрудники[Другие уд-я])","v":118},{"$f":"SUBTOTAL(109,Сотрудники[Зарплата нетто])","v":2705.5284999999994},null,null,null,null,null,null,null,null,null,{"$f":"SUBTOTAL(109,Сотрудники[Страховое удержание])","v":143},{"$f":"SUBTOTAL(109,Сотрудники[Другие рег. удержания])","v":170},{"$f":"SUBTOTAL(109,Сотрудники[Итого рег. удержаний])","v":313}]

{"sheet":"шаблон_квитанций","index":1,"n_rows":47,"n_cols":13,"rows_kept":47,"cut":false,"hidden":true,"merged":[[2,7,2,8],[14,7,14,8],[26,7,26,8],[38,7,38,8],[38,11,38,12],[26,11,26,12],[14,11,14,12],[2,11,2,12],[2,3,2,4],[14,3,14,4],[26,3,26,4],[38,3,38,4],[44,2,44,3],[8,2,8,3],[9,2,9,3],[45,2,45,3],[32,2,32,3],[33,2,33,3],[20,2,20,3],[21,2,21,3]]}
[]
[null,null,{"$f":"НазваниеКомпании","v":"Мир приключений"}]
[null,null,"ПЕРИОД",{"$f":"ОкончаниеПериода","v":41372},null,null,"ИМЯ",{"$f":"IFERROR(INDEX(Сотрудники[Имя сотрудника],Квитанция),\"\")","v":"Григорий Верный"},null,null,"КОД СОТРУДНИКА",{"$f":"IFERROR(INDEX(Сотрудники[Код],Квитанция),\"\")","v":1001}]
[null,null,"Налоговый статус",null,{"$f":"IFERROR(INDEX(Сотрудники[Налоговый статус],Квитанция),\"\")","v":1},null,"Федеральный вычет (из W-4)",null,{"$f":"IFERROR(INDEX(Сотрудники[Федеральный вычет],Квитанция),\"\")","v":4},null,"Отработано часов",null,{"$f":"IFERROR(INDEX(Сотрудники[Отработано обычн. часов],Квитанция),\"\")","v":50}]
[null,null,"Почасовая ставка",null,{"$f":"IFERROR(INDEX(Сотрудники[Почасовая ставка],Квитанция),\"\")","v":10},null,"Сверхурочная ставка",null,{"$f":"IFERROR(INDEX(Сотрудники[Сверхурочная ставка],Квитанция),\"\")","v":0},null,"Больничный, ч",null,{"$f":"IFERROR(INDEX(Сотрудники[Больничный, ч],Квитанция),\"\")","v":1}]
[null,null,"Социальный налог",null,{"$f":"IFERROR(INDEX(Сотрудники[Социальный налог],Квитанция)  *  INDEX(Сотрудники[Зарплата брутто],Квитанция),\"\")","v":35.28},null,"Федеральный подоходный налог ",null,{"$f":"IFERROR(INDEX(Сотрудники[Федеральный подоходный налог],Квитанция)  *  INDEX(Сотрудники[Зарплата брутто],Квитанция),\"\")","v":156.80000000000001},null,"Отпуск, ч",null,{"$f":"IFERROR(INDEX(Сотрудники[Отпуск, ч],Квитанция),\"\")","v":5}]
[null,null,"Отчисление в ФОМС",null,{"$f":"IFERROR(INDEX(Сотрудники[Отчисление в ФОМС],Квитанция)  *  INDEX(Сотрудники[Зарплата брутто],Квитанция),\"\")","v":8.120000000000001},null,"Налог штата ",null,{"$f":"IFERROR(INDEX(Сотрудники[Налог штата],Квитанция)  *  INDEX(Сотрудники[Зарплата брутто],Квитанция),\"\")","v":12.879999999999999},null,"Сверхурочно, ч",null,{"$f":"IFERROR(INDEX(Сотрудники[Сверхурочно, ч],Квитанция),\"\")","v":0}]
[null,null,"Страховое удержание",null,{"$f":"IFERROR(INDEX(Сотрудники[Страховое удержание],Квитанция),\"\")","v":20},null,"Другие регулярные удержания",null,{"$f":"IFERROR(INDEX(Сотрудники[Другие рег. удержания],Квитанция),\"\")","v":40},null,"Зарплата брутто",null,{"$f":"IFERROR(INDEX(Сотрудники[Зарплата брутто],Квитанция),\"\")","v":560}]
[null,null,"Итого налогов и",null,{"$f":"IFERROR(INDEX(Сотрудники[Налоги и уд-я],Квитанция),\"\")","v":273.08000000000004},null,"Другие удержания",null,{"$f":"IFERROR(INDEX(Сотрудники[Другие уд-я],Квитанция),\"\")","v":20},null,"Итого налогов и удержаний ",null,{"$f":"IFERROR(INDEX(Сотрудники[Налоги и уд-я],Квитанция)  +  INDEX(Сотрудники[Другие уд-я],Квитанция),\"\")","v":293.08000000000004}]
[null,null,"регулярных удержаний "]
[null,null,null,null,null,null,null,null,null,null,"ЗАРПЛАТА НЕТТО",null,{"$f":"IFERROR(INDEX(Сотрудники[Зарплата нетто],Квитанция),\"\")","v":266.91999999999996}]
[]
[]
[null,null,{"$f":"НазваниеКомпании","v":"Мир приключений"}]
[null,null,"ПЕРИОД",{"$f":"ОкончаниеПериода","v":41372},null,null,"ИМЯ",{"$f":"IFERROR(INDEX(Сотрудники[Имя сотрудника],Квитанция),\"\")","v":"Владимир Егоров"},null,null,"КОД СОТРУДНИКА",{"$f":"IFERROR(INDEX(Сотрудники[Код],Квитанция),\"\")","v":1002}]
[null,null,"Налоговый статус",null,{"$f":"IFERROR(INDEX(Сотрудники[Налоговый статус],Квитанция),\"\")","v":1},null,"Федеральный вычет (из W-4)",null,{"$f":"IFERROR(INDEX(Сотрудники[Федеральный вычет],Квитанция),\"\")","v":1},null,"Отработано часов",null,{"$f":"IFERROR(INDEX(Сотрудники[Отработано обычн. часов],Квитанция),\"\")","v":40}]
[null,null,"Почасовая ставка",null,{"$f":"IFERROR(INDEX(Сотрудники[Почасовая ставка],Квитанция),\"\")","v":8},null,"Сверхурочная ставка",null,{"$f":"IFERROR(INDEX(Сотрудники[Сверхурочная ставка],Квитанция),\"\")","v":0},null,"Больничный, ч",null,{"$f":"IFERROR(INDEX(Сотрудники[Больничный, ч],Квитанция),\"\")","v":0}]
[null,null,"Социальный налог",null,{"$f":"IFERROR(INDEX(Сотрудники[Социальный налог],Квитанция)  *  INDEX(Сотрудники[Зарплата брутто],Квитанция),\"\")","v":20.16},null,"Федеральный подоходный налог ",null,{"$f":"IFERROR(INDEX(Сотрудники[Федеральный подоходный налог],Квитанция)  *  INDEX(Сотрудники[Зарплата брутто],Квитанция),\"\")","v":89.600000000000009},null,"Отпуск, ч",null,{"$f":"IFERROR(INDEX(Сотрудники[Отпуск, ч],Квитанция),\"\")","v":0}]
[null,null,"Отчисление в ФОМС",null,{"$f":"IFERROR(INDEX(Сотрудники[Отчисление в ФОМС],Квитанция)  *  INDEX(Сотрудники[Зарплата брутто],Квитанция),\"\")","v":4.6400000000000006},null,"Налог штата ",null,{"$f":"IFERROR(INDEX(Сотрудники[Налог штата],Квитанция)  *  INDEX(Сотрудники[Зарплата брутто],Квитанция),\"\")","v":7.3599999999999994},null,"Сверхурочно, ч",null,{"$f":"IFERROR(INDEX(Сотрудники[Сверхурочно, ч],Квитанция),\"\")","v":0}]
[null,null,"Страховое удержание",null,{"$f":"IFERROR(INDEX(Сотрудники[Страховое удержание],Квитанция),\"\")","v":0},null,"Другие регулярные удержания",null,{"$f":"IFERROR(INDEX(Сотрудники[Другие рег. удержания],Квитанция),\"\")","v":10},null,"Зарплата брутто",null,{"$f":"IFERROR(INDEX(Сотрудники[Зарплата брутто],Квитанция),\"\")","v":320}]
[null,null,"Итого налогов и",null,{"$f":"IFERROR(INDEX(Сотрудники[Налоги и уд-я],Квитанция),\"\")","v":131.76000000000002},null,"Другие удержания",null,{"$f":"IFERROR(INDEX(Сотрудники[Другие уд-я],Квитанция),\"\")","v":0},null,"Итого налогов и удержаний ",null,{"$f":"IFERROR(INDEX(Сотрудники[Налоги и уд-я],Квитанция)  +  INDEX(Сотрудники[Другие уд-я],Квитанция),\"\")","v":131.76000000000002}]
[null,null,"регулярных удержаний "]
[null,null,null,null,null,null,null,null,null,null,"ЗАРПЛАТА НЕТТО",null,{"$f":"IFERROR(INDEX(Сотрудники[Зарплата нетто],Квитанция),\"\")","v":188.23999999999998}]
[]
[]
[null,null,{"$f":"НазваниеКомпании","v":"Мир приключений"}]
[null,null,"ПЕРИОД",{"$f":"ОкончаниеПериода","v":41372},null,null,"ИМЯ",{"$f":"IFERROR(INDEX(Сотрудники[Имя сотрудника],Квитанция),\"\")","v":"Юлия Ильина"},null,null,"КОД СОТРУДНИКА",{"$f":"IFERROR(INDEX(Сотрудники[Код],Квитанция),\"\")","v":1003}]
[null,null,"Налоговый статус",null,{"$f":"IFERROR(INDEX(Сотрудники[Налоговый статус],Квитанция),\"\")","v":1},null,"Федеральный вычет (из W-4)",null,{"$f":"IFERROR(INDEX(Сотрудники[Федеральный вычет],Квитанция),\"\")","v":3},null,"Отработано часов",null,{"$f":"IFERROR(INDEX(Сотрудники[Отработано обычн. часов],Квитанция),\"\")","v":35}]
[null,null,"Почасовая ставка",null,{"$f":"IFERROR(INDEX(Сотрудники[Почасовая ставка],Квитанция),\"\")","v":14},null,"Сверхурочная ставка",null,{"$f":"IFERROR(INDEX(Сотрудники[Сверхурочная ставка],Квитанция),\"\")","v":0},null,"Больничный, ч",null,{"$f":"IFERROR(INDEX(Сотрудники[Больничный, ч],Квитанция),\"\")","v":0}]
[null,null,"Социальный налог",null,{"$f":"IFERROR(INDEX(Сотрудники[Социальный налог],Квитанция)  *  INDEX(Сотрудники[Зарплата брутто],Квитанция),\"\")","v":33.515999999999998},null,"Федеральный подоходный налог ",null,{"$f":"IFERROR(INDEX(Сотрудники[Федеральный подоходный налог],Квитанция)  *  INDEX(Сотрудники[Зарплата брутто],Квитанция),\"\")","v":148.96},null,"Отпуск, ч",null,{"$f":"IFERROR(INDEX(Сотрудники[Отпуск, ч],Квитанция),\"\")","v":3}]
[null,null,"Отчисление в ФОМС",null,{"$f":"IFERROR(INDEX(Сотрудники[Отчисление в ФОМС],Квитанция)  *  INDEX(Сотрудники[Зарплата брутто],Квитанция),\"\")","v":7.7140000000000004},null,"Налог штата ",null,{"$f":"IFERROR(INDEX(Сотрудники[Налог штата],Квитанция)  *  INDEX(Сотрудники[Зарплата брутто],Квитанция),\"\")","v":12.236000000000001},null,"Сверхурочно, ч",null,{"$f":"IFERROR(INDEX(Сотрудники[Сверхурочно, ч],Квитанция),\"\")","v":0}]
[null,null,"Страховое удержание",null,{"$f":"IFERROR(INDEX(Сотрудники[Страховое удержание],Квитанция),\"\")","v":18},null,"Другие регулярные удержания",null,{"$f":"IFERROR(INDEX(Сотрудники[Другие рег. удержания],Квитанция),\"\")","v":20},null,"Зарплата брутто",null,{"$f":"IFERROR(INDEX(Сотрудники[Зарплата брутто],Квитанция),\"\")","v":532}]
[null,null,"Итого налогов и",null,{"$f":"IFERROR(INDEX(Сотрудники[Налоги и уд-я],Квитанция),\"\")","v":240.42600000000004},null,"Другие удержания",null,{"$f":"IFERROR(INDEX(Сотрудники[Другие уд-я],Квитанция),\"\")","v":0},null,"Итого налогов и удержаний ",null,{"$f":"IFERROR(INDEX(Сотрудники[Налоги и уд-я],Квитанция)  +  INDEX(Сотрудники[Другие уд-я],Квитанция),\"\")","v":240.42600000000004}]
[null,null,"регулярных удержаний "]
[null,null,null,null,null,null,null,null,null,null,"ЗАРПЛАТА НЕТТО",null,{"$f":"IFERROR(INDEX(Сотрудники[Зарплата нетто],Квитанция),\"\")","v":291.57399999999996}]
[]
[]
[null,null,{"$f":"НазваниеКомпании","v":"Мир приключений"}]
[null,null,"ПЕРИОД",{"$f":"ОкончаниеПериода","v":41372},null,null,"ИМЯ",{"$f":"IFERROR(INDEX(Сотрудники[Имя сотрудника],Квитанция),\"\")","v":"Николай Грачев"},null,null,"КОД СОТРУДНИКА",{"$f":"IFERROR(INDEX(Сотрудники[Код],Квитанция),\"\")","v":1008}]
[null,null,"Налоговый статус",null,{"$f":"IFERROR(INDEX(Сотрудники[Налоговый статус],Квитанция),\"\")","v":1},null,"Федеральный вычет (из W-4)",null,{"$f":"IFERROR(INDEX(Сотрудники[Федеральный вычет],Квитанция),\"\")","v":0},null,"Отработано часов",null,{"$f":"IFERROR(INDEX(Сотрудники[Отработано обычн. часов],Квитанция),\"\")","v":50}]
[null,null,"Почасовая ставка",null,{"$f":"IFERROR(INDEX(Сотрудники[Почасовая ставка],Квитанция),\"\")","v":20},null,"Сверхурочная ставка",null,{"$f":"IFERROR(INDEX(Сотрудники[Сверхурочная ставка],Квитанция),\"\")","v":0},null,"Больничный, ч",null,{"$f":"IFERROR(INDEX(Сотрудники[Больничный, ч],Квитанция),\"\")","v":1}]
[null,null,"Социальный налог",null,{"$f":"IFERROR(INDEX(Сотрудники[Социальный налог],Квитанция)  *  INDEX(Сотрудники[Зарплата брутто],Квитанция),\"\")","v":70.56},null,"Федеральный подоходный налог ",null,{"$f":"IFERROR(INDEX(Сотрудники[Федеральный подоходный налог],Квитанция)  *  INDEX(Сотрудники[Зарплата брутто],Квитанция),\"\")","v":313.60000000000002},null,"Отпуск, ч",null,{"$f":"IFERROR(INDEX(Сотрудники[Отпуск, ч],Квитанция),\"\")","v":5}]
[null,null,"Налог Medicare ",null,{"$f":"IFERROR(INDEX(Сотрудники[Отчисление в ФОМС],Квитанция)  *  INDEX(Сотрудники[Зарплата брутто],Квитанция),\"\")","v":16.240000000000002},null,"Налог штата ",null,{"$f":"IFERROR(INDEX(Сотрудники[Налог штата],Квитанция)  *  INDEX(Сотрудники[Зарплата брутто],Квитанция),\"\")","v":25.759999999999998},null,"Сверхурочно, ч",null,{"$f":"IFERROR(INDEX(Сотрудники[Сверхурочно, ч],Квитанция),\"\")","v":0}]
[null,null,"Страховое удержание",null,{"$f":"IFERROR(INDEX(Сотрудники[Страховое удержание],Квитанция),\"\")","v":15},null,"Другие регулярные удержания",null,{"$f":"IFERROR(INDEX(Сотрудники[Другие рег. удержания],Квитанция),\"\")","v":0},null,"Зарплата брутто",null,{"$f":"IFERROR(INDEX(Сотрудники[Зарплата брутто],Квитанция),\"\")","v":1120}]
[null,null,"Итого налогов и",null,{"$f":"IFERROR(INDEX(Сотрудники[Налоги и уд-я],Квитанция),\"\")","v":441.16000000000008},null,"Другие удержания",null,{"$f":"IFERROR(INDEX(Сотрудники[Другие уд-я],Квитанция),\"\")","v":0},null,"Итого налогов и удержаний ",null,{"$f":"IFERROR(INDEX(Сотрудники[Налоги и уд-я],Квитанция)  +  INDEX(Сотрудники[Другие уд-я],Квитанция),\"\")","v":441.16000000000008}]
[null,null,"регулярных удержаний "]
[null,null,null,null,null,null,null,null,null,null,"ЗАРПЛАТА НЕТТО",null,{"$f":"IFERROR(INDEX(Сотрудники[Зарплата нетто],Квитанция),\"\")","v":678.83999999999992}]